[Event "EICC 2025"]
[Site "Eforie-Nord"]
[Date "2025.03.16"]
[Round "2.25"]
[White "Willow, Jonah B"]
[Black "Santos Latasa, Jaime"]
[Result "1/2-1/2"]
[Annotator "TA"]
[ECO "B90"]
[WhiteElo "2450"]
[BlackElo "2627"]
[PlyCount "44"]
[EventDate "2025.03.14"]
[EventType "swiss"]
[EventCountry "ROU"]
[SourceTitle "playchess.com"]
[Source "ChessBase"]
[SourceQuality "1"]
[TimeControl "40/5400+30:1800+30"]

{[%evp 14,44,8,4,4,12,5,8,0,15,14,12,16,4,10,9,2,0,0,0,1,0,20,4,16,0,0,0,7,9,4,7,68]} 1. e4 {[%emt 0:00:03]} c5 {[%emt 0:00:09]} 2. Nf3 {[%emt 0:00:15]} d6 {[%emt 0:00:04]} 3. d4 {[%emt 0:00:05]} cxd4 {[%emt 0:00:04]} 4. Nxd4 {[%emt 0:00:06]} Nf6 {[%emt 0:00:04]} 5. Nc3 {[%emt 0:00:06]} a6 {[%emt 0:00:03]} 6. a4 {[%emt 0:00:41]} e5 {[%emt 0:01:13]} 7. Nf3 {[%emt 0:00:06]} Be7 {[%emt 0:00:13]} 8. Bg5 {[%emt 0:00:13] The position is equal.} Be6 {[%emt 0:00:05] B90: Sicilian Najdorf: Unusual White 6th moves, 6 Be3 Ng4 and 6 Be3 e5.} 9. Bxf6 {[%emt 0:00:20]} Bxf6 {[%emt 0:00:06]} 10. Nd5 {[%emt 0:00:07] Wards off Qb6} Nd7 {[%emt 0:03:18]} 11. Bc4 {[%emt 0:01:39]} Rc8 {[%emt 0:01:26]} 12. Qe2 {[%emt 0:00:11]} Nb6 {[%emt 0:00:51]} 13. Nxf6+ {[%emt 0:02:27]} Qxf6 {[%emt 0:01:05]} 14. Bxe6 {[%emt 0:00:09]} Qxe6 {[%emt 0:00:08]} 15. O-O {[%emt 0:00:41][%cal Bh1f1,Bf1d1,Bd1d2][%mdl 32]} O-O {[%emt 0:00:17]} 16. b3 {[%emt 0:00:03]} Nd7 {[%emt 0:02:05]} 17. Rfd1 {[%emt 0:08:30]} Rfd8 {[%emt 0:15:01]} 18. Rd2 {[%emt 0:19:08]} h6 $146 {[%emt 0:04:01]} (18... Nf6 19. Rad1 Qg4 20. Rxd6 Rxd6 21. Rxd6 Qxe4 22. Qd1 h6 23. c4 Qf5 24. h3 Rc6 {½-½ Patrelakis,E (2426)-Koutlas,N (2369) Thessaloniki Vardaris op 8th 2025 (7)}) 19. Rad1 {[%emt 0:02:41]} Nf6 {[%emt 0:01:43]} 20. c4 {[%emt 0:10:15]} b5 {[%emt 0:02:19]} 21. axb5 {[%emt 0:03:25]} axb5 {[%emt 0:00:36]} 22. cxb5 {[%emt 0:00:09]} Qxb3 {[%emt 0:00:30] Weighted Error Value: White=0.01 (flawless) /Black=0.03 (flawless)   Mistake:       	---       	Black=1      OK:         	White=8     	Black=6} (22... Rc3 $11) 1/2-1/2

[Event "EICC 2025"]
[Site "Eforie-Nord"]
[Date "2025.03.16"]
[Round "2.26"]
[White "Bosiocic, Marin"]
[Black "Lohia, Sohum"]
[Result "1-0"]
[Annotator "ChessBase"]
[ECO "E11"]
[WhiteElo "2518"]
[BlackElo "2365"]
[PlyCount "85"]
[EventDate "2025.03.14"]
[EventType "swiss"]
[EventCountry "ROU"]
[SourceTitle "playchess.com"]
[Source "ChessBase"]
[SourceQuality "1"]
[TimeControl "40/5400+30:1800+30"]

1. d4 {[%emt 0:00:02]} Nf6 {[%emt 0:00:10]} 2. c4 {[%emt 0:00:14]} e6 {[%emt 0:00:13]} 3. Nf3 {[%emt 0:00:06]} d5 {[%emt 0:00:11]} 4. g3 {[%emt 0:00:04]} Bb4+ {[%emt 0:00:24]} 5. Bd2 {[%emt 0:00:18]} a5 {[%emt 0:00:29]} 6. a3 {[%emt 0:00:43]} Be7 {[%emt 0:02:18]} 7. Bg2 {[%emt 0:00:33]} O-O {[%emt 0:00:48]} 8. Qc2 {[%emt 0:00:08]} c6 {[%emt 0:03:10]} 9. h4 {[%emt 0:02:20]} b6 {[%emt 0:08:53]} 10. Nc3 {[%emt 0:04:02]} Ba6 {[%emt 0:01:57]} 11. e4 {[%emt 0:06:58]} dxe4 {[%emt 0:04:02]} 12. Ng5 {[%emt 0:00:45]} Qxd4 {[%emt 0:03:33]} 13. Ncxe4 {[%emt 0:07:35]} Nxe4 {[%emt 0:03:20]} 14. Bxe4 {[%emt 0:00:49]} f5 {[%emt 0:14:12]} 15. Bd3 {[%emt 0:00:10]} Qf6 {[%emt 0:13:48]} 16. Bc3 {[%emt 0:05:25]} Qh6 {[%emt 0:01:25]} 17. O-O-O {[%emt 0:02:49]} Nd7 {[%emt 0:03:29]} 18. f4 {[%emt 0:02:38]} Nc5 {[%emt 0:01:42]} 19. Be2 {[%emt 0:01:18]} b5 {[%emt 0:06:04]} 20. Rhe1 {[%emt 0:11:36]} bxc4 {[%emt 0:01:36]} 21. Kb1 {[%emt 0:02:17]} Bb5 {[%emt 0:13:43]} 22. Qc1 {[%emt 0:10:15]} Na4 {[%emt 0:03:43]} 23. Bd4 {[%emt 0:02:19]} Rfe8 {[%emt 0:11:11]} 24. Bxc4 {[%emt 0:01:12]} Bxg5 {[%emt 0:00:13]} 25. hxg5 {[%emt 0:03:12]} Qg6 {[%emt 0:00:16]} 26. Bxb5 {[%emt 0:08:03]} cxb5 {[%emt 0:00:14]} 27. Qc6 {[%emt 0:00:05]} e5 {[%emt 0:01:42]} 28. Qd5+ {[%emt 0:02:00]} Qf7 {[%emt 0:00:34]} 29. Bxe5 {[%emt 0:02:10]} b4 {[%emt 0:01:05]} 30. Qb5 {[%emt 0:07:12]} Nc3+ {[%emt 0:00:32]} 31. bxc3 {[%emt 0:00:06]} Qb3+ {[%emt 0:00:29]} 32. Kc1 {[%emt 0:00:02]} Qxa3+ {[%emt 0:00:24]} 33. Kc2 {[%emt 0:01:16]} Qa2+ {[%emt 0:00:36]} 34. Kd3 {[%emt 0:00:06]} Rad8+ {[%emt 0:00:32]} 35. Ke3 {[%emt 0:03:03]} Qg2 {[%emt 0:00:28]} 36. Qc4+ {[%emt 0:02:50]} Kf8 {[%emt 0:00:32]} 37. Rg1 {[%emt 0:00:44]} Qc2 {[%emt 0:00:30]} 38. Rd3 {[%emt 0:04:27]} Rc8 {[%emt 0:00:29]} 39. Qd4 {[%emt 0:02:09]} Rxc3 {[%emt 0:00:25]} 40. Rxc3 {[%emt 0:02:35]} bxc3 {[%emt 0:00:05]} 41. Kf3 {[%emt 0:32:14]} Kg8 {[%emt 0:03:18]} 42. Qd5+ {[%emt 0:00:00]} Kh8 {[%emt 0:00:19]} 43. Re1 {[%emt 0:00:00]} 1-0

[Event "EICC 2025"]
[Site "Eforie-Nord"]
[Date "2025.03.16"]
[Round "2.26"]
[White "Szpar, Milosz"]
[Black "Rodshtein, Maxim"]
[Result "1/2-1/2"]
[Annotator "TA"]
[ECO "B13"]
[WhiteElo "2449"]
[BlackElo "2623"]
[PlyCount "41"]
[EventDate "2025.03.14"]
[EventType "swiss"]
[EventCountry "ROU"]
[SourceTitle "playchess.com"]
[Source "ChessBase"]
[SourceQuality "1"]
[TimeControl "40/5400+30:1800+30"]

{[%evp 23,41,12,15,15,13,0,25,0,0,0,15,11,19,4,2,0,0,0,18,-7]} 1. e4 {[%emt 0:00:04]} c6 {[%emt 0:00:17]} 2. d4 {[%emt 0:00:24]} d5 {[%emt 0:00:07]} 3. exd5 {[%emt 0:00:26]} cxd5 {[%emt 0:00:06]} 4. Bd3 {[%emt 0:00:07]} Nf6 {[%emt 0:01:11]} 5. h3 {[%emt 0:01:02]} g6 {[%emt 0:02:57]} 6. Nf3 {[%emt 0:10:22]} Bf5 {[%emt 0:00:19]} 7. O-O {[%emt 0:03:01]} Nc6 {[%emt 0:06:42]} 8. Re1 {[%emt 0:04:34]} Bxd3 {[%emt 0:01:09]} 9. Qxd3 {[%emt 0:00:06]} Bg7 {[%emt 0:00:23]} 10. Bf4 {[%emt 0:03:25]} O-O {[%emt 0:06:53]} 11. Nbd2 {[%emt 0:00:55]} e6 {[%emt 0:00:59]} 12. c3 {[%emt 0:02:27]} Rc8 {[%emt 0:03:19]} 13. Qb5 {[%emt 0:03:29] B13: Caro-Kann: Exchange Variation and Panov-Botvinnik Attack.} b6 {[%emt 0:12:53]} 14. a4 {[%emt 0:03:16]} Ne8 $146 {[%emt 0:03:09]} (14... Nd7 15. Nb3 a5 16. Nc1 Re8 17. Nd3 h6 18. Re2 Kh7 19. Rae1 Bf6 20. Bg3 Ne7 21. Nf4 Bg5 22. Nxg5+ hxg5 23. Nxe6 fxe6 24. Rxe6 Nf8 25. Qxe8 {1-0 Breyther,R (2253)-Meyer,F (2226) Oberliga Nord N 2324 2023 (1.4)}) 15. Qa6 {[%emt 0:09:24] White has an edge.} Nd6 {[%emt 0:05:45] The position is equal.} 16. Ne5 {[%emt 0:02:53]} Nxe5 {[%emt 0:11:05]} 17. Bxe5 {[%emt 0:01:25]} Re8 {[%emt 0:09:28]} 18. Re2 {[%emt 0:12:05]} (18. Qxa7 Bxe5 (18... Ra8 19. Qxa8 Qxa8 20. Bxd6 $15) 19. dxe5 Ra8 $15) 18... Qd7 {[%emt 0:13:51]} 19. a5 {[%emt 0:11:35]} Rc6 {[%emt 0:08:37]} 20. axb6 {[%emt 0:04:44]} axb6 {[%emt 0:00:02]} 21. Nf3 {[%emt 0:04:45] An uneventful encounter.   Weighted Error Value: White=0.08 (flawless) /Black=0.06 (flawless)   OK:         	White=2     	Black=2} 1/2-1/2

[Event "EICC 2025"]
[Site "Eforie-Nord"]
[Date "2025.03.16"]
[Round "2.27"]
[White "Maurizzi, Marc`Andria"]
[Black "Fromm, Marius"]
[Result "1-0"]
[Annotator "TA"]
[ECO "E20"]
[WhiteElo "2622"]
[BlackElo "2444"]
[PlyCount "101"]
[EventDate "2025.03.14"]
[EventType "swiss"]
[EventCountry "ROU"]
[SourceTitle "playchess.com"]
[Source "ChessBase"]
[SourceQuality "1"]
[TimeControl "40/5400+30:1800+30"]

{[%evp 15,101,-23,-20,-57,-58,-56,0,0,0,0,0,0,0,0,39,18,52,47,68,56,56,49,31,34,32,33,45,17,20,40,75,52,68,73,209,210,224,212,208,221,213,217,224,225,315,219,218,211,214,218,215,203,216,205,224,216,216,200,224,224,230,230,230,230,235,228,216,216,235,235,242,242,242,242,242,242,558,543,895,895,808,769,6334,11528,6660,6107,5398,4096]} 1. d4 {[%emt 0:03:43]} Nf6 {[%emt 0:01:44]} 2. c4 {[%emt 0:01:34]} e6 {[%emt 0:00:10]} 3. Nc3 {[%emt 0:02:20]} Bb4 {[%emt 0:02:36]} 4. g3 {[%emt 0:01:38]} O-O {[%emt 0:07:46]} 5. Bg2 {[%emt 0:00:23]} d5 {[%emt 0:04:51]} 6. Nf3 {[%emt 0:01:05]} dxc4 {[%emt 0:00:42]} 7. O-O {[%emt 0:00:32]} Nc6 {[%emt 0:00:04]} 8. a3 {[%emt 0:00:02] 8.Re1 deserves study.} Be7 {[%emt 0:02:43]} 9. e4 {[%emt 0:00:57] E20: Nimzo-Indian: 4 g3 and 4 f3.} Na5 {[%emt 0:07:05]} 10. Be3 {[%emt 0:00:58]} Nb3 {[%emt 0:02:11]} (10... a6 $15) 11. Rb1 $11 {[%emt 0:00:04] White sacrificed a pawn. The position is equal.} c5 {[%emt 0:03:37]} 12. dxc5 {[%emt 0:00:05]} Bxc5 {[%emt 0:03:18]} 13. Bxc5 {[%emt 0:00:07]} Nxc5 {[%emt 0:01:01]} 14. Qe2 {[%emt 0:00:14][%cal Ob1d1]} Qe7 $146 {[%emt 0:16:27]} (14... b6 15. Rfd1 Qe8 16. Qxc4 Ba6 17. Qd4 Rd8 18. Qe3 Rxd1+ 19. Rxd1 Na4 20. e5 Nxc3 21. exf6 {1-0 Robson,R (2689)-Dominguez Perez,L (2741) Champions Showdown Kings blitz 2025 (1.3)}) 15. Ne5 {[%emt 0:10:39]} Bd7 {[%emt 0:17:56]} 16. Nxc4 {[%emt 0:04:12]} e5 {[%emt 0:02:04]} 17. f4 {[%emt 0:15:04]} Bg4 $1 {[%emt 0:19:58]} 18. Qe3 {[%emt 0:05:22]} exf4 {[%emt 0:00:24]} 19. Rxf4 {[%emt 0:00:01][%cal Bf1f4,Bf4c4,Bc4c7][%mdl 32]} Be6 $1 {[%emt 0:03:17]} 20. e5 {[%emt 0:00:16]} Bxc4 $1 {[%emt 0:00:26]} (20... Ng4 $2 21. Rxg4 Bxg4 22. Nd5 $18) 21. Rxc4 {[%emt 0:01:34]} Ncd7 {[%emt 0:00:05][%cal Bc5d7,Bd7e5,Be5c4][%mdl 32]} 22. Rc7 $36 {[%emt 0:03:35][%mdl 2048] White has some pressure.} (22. Bxb7 Rad8 $14) 22... Qxe5 {[%emt 0:02:32]} 23. Qxe5 {[%emt 0:00:07]} Nxe5 {[%emt 0:00:02]} 24. Rxb7 {[%emt 0:00:19] White is more active.} Rab8 {[%emt 0:00:57] Loses the game.} (24... h5 $16 {was necessary.}) 25. Rxa7 $18 {[%emt 0:00:31]} Rfc8 {[%emt 0:00:32][%cal Oc8c3] ...Rxc3! is the strong threat.} 26. Rb7 {[%emt 0:01:54]} Rxb7 {[%emt 0:00:23]} 27. Bxb7 {[%emt 0:00:01]} Rb8 {[%emt 0:00:19]} 28. Bg2 {[%emt 0:00:02]} Nc4 {[%emt 0:00:17][%cal Og8f8] [#]} 29. a4 $1 {[%emt 0:00:20]} Rb4 {[%emt 0:00:44] [#]} 30. a5 $1 {[%emt 0:01:22][%mdl 512]} Nxa5 {[%emt 0:00:47]} 31. Ra1 {[%emt 0:00:00]} Rxb2 {[%emt 0:00:26]} 32. Rxa5 {[%emt 0:00:05]} g6 {[%emt 0:00:23]} 33. Ra2 {[%emt 0:03:10]} Rb4 {[%emt 0:00:18]} 34. Rf2 {[%emt 0:01:43]} Rc4 {[%emt 0:00:54]} 35. Rxf6 {[%emt 0:02:48]} Rxc3 {[%emt 0:00:01][%mdl 4096] Endgame KRB-KR} 36. Rc6 {[%emt 0:01:42]} Rd3 {[%emt 0:00:17]} 37. Rc7 {[%emt 0:00:11]} h5 {[%emt 0:00:17]} 38. Bf1 {[%emt 0:01:52]} Rd6 {[%emt 0:00:37]} 39. Kf2 {[%emt 0:00:36]} Rf6+ {[%emt 0:00:05]} 40. Ke2 {[%emt 0:00:23]} Kg7 {[%emt 0:00:04]} 41. Bg2 {[%emt 0:30:03]} Re6+ {[%emt 0:07:32]} 42. Kd3 {[%emt 0:00:00]} Rf6 {[%emt 0:03:46]} 43. Bd5 {[%emt 0:00:00]} Rf2 {[%emt 0:00:49]} 44. h3 {[%emt 0:00:00]} Rf5 {[%emt 0:00:18]} 45. Kd4 {[%emt 0:00:00]} Kf8 $2 {[%emt 0:00:28]} (45... Rf2 46. Bc4 Rf3) 46. Rc3 {[%emt 0:00:00] aiming for Rf3. White is clearly winning.} Rf2 {[%emt 0:02:32]} 47. Rf3 {[%emt 0:00:00]} Rd2+ {[%emt 0:00:05]} 48. Ke5 {[%emt 0:00:00]} f5 {[%emt 0:00:08]} 49. Rc3 {[%emt 0:00:00][%cal Oe5f6] White wants to mate with Kf6!.} Kg7 {[%emt 0:00:18]} 50. Rc7+ {[%emt 0:00:00]} Kh6 {[%emt 0:01:26]} 51. h4 {[%emt 0:00:00] Weighted Error Value: White=0.05 (flawless) /Black=0.43  Mistake:       	---       	Black=3      Inaccurate:     	White=2     	Black=5      OK:         	White=15    	Black=14     Best:        	White=5     	---        Strong:       	White=1     	Black=3} 1-0

[Event "EICC 2025"]
[Site "Eforie-Nord"]
[Date "2025.03.16"]
[Round "2.27"]
[White "Domalchuk-Jonasson, Aleksandr"]
[Black "Parligras, Mircea-Emilian"]
[Result "0-1"]
[Annotator "ChessBase"]
[ECO "A21"]
[WhiteElo "2374"]
[BlackElo "2518"]
[PlyCount "60"]
[EventDate "2025.03.14"]
[EventType "swiss"]
[EventCountry "ROU"]
[SourceTitle "playchess.com"]
[Source "ChessBase"]
[SourceQuality "1"]
[TimeControl "40/5400+30:1800+30"]

1. c4 {[%emt 0:00:42]} e5 {[%emt 0:00:17]} 2. Nc3 {[%emt 0:01:06]} d6 {[%emt 0:00:16]} 3. Nf3 {[%emt 0:01:22]} f5 {[%emt 0:00:26]} 4. d4 {[%emt 0:01:51]} e4 {[%emt 0:00:13]} 5. Ng5 {[%emt 0:00:10]} c6 {[%emt 0:02:08]} 6. Nh3 {[%emt 0:07:48]} Be7 {[%emt 0:02:25]} 7. g3 {[%emt 0:04:36]} Na6 {[%emt 0:02:50]} 8. Bg2 {[%emt 0:07:40]} Nf6 {[%emt 0:01:00]} 9. d5 {[%emt 0:12:57]} O-O {[%emt 0:05:59]} 10. O-O {[%emt 0:00:22]} Nc5 {[%emt 0:14:02]} 11. b4 {[%emt 0:15:22]} Ncd7 {[%emt 0:00:24]} 12. Nf4 {[%emt 0:02:25]} Ne5 {[%emt 0:01:14]} 13. Qb3 {[%emt 0:00:15]} g5 {[%emt 0:15:37]} 14. Ne6 {[%emt 0:06:25]} Bxe6 {[%emt 0:00:10]} 15. dxe6 {[%emt 0:00:03]} Nh5 {[%emt 0:01:54]} 16. Bb2 {[%emt 0:13:07]} Bf6 {[%emt 0:03:21]} 17. Rad1 {[%emt 0:01:56]} Qe7 {[%emt 0:01:10]} 18. f3 {[%emt 0:01:51]} Qxe6 {[%emt 0:11:22]} 19. Rxd6 {[%emt 0:05:23]} Qxc4 {[%emt 0:00:08]} 20. fxe4 {[%emt 0:00:06]} Qxb3 {[%emt 0:02:22]} 21. axb3 {[%emt 0:00:05]} f4 {[%emt 0:00:16]} 22. gxf4 {[%emt 0:08:20]} Nxf4 {[%emt 0:06:31]} 23. e3 {[%emt 0:00:36]} Nxg2 {[%emt 0:02:07]} 24. Rfxf6 {[%emt 0:04:57]} Nxe3 {[%emt 0:01:35]} 25. Ne2 {[%emt 0:02:08]} N5g4 {[%emt 0:02:36]} 26. Rxf8+ {[%emt 0:00:10]} Rxf8 {[%emt 0:00:07]} 27. Ng3 {[%emt 0:00:04]} Rf2 {[%emt 0:00:44]} 28. Rd8+ {[%emt 0:02:03]} Kf7 {[%emt 0:00:08]} 29. Bd4 {[%emt 0:00:13]} Rg2+ {[%emt 0:00:09]} 30. Kh1 {[%emt 0:00:03]} Nf2# {[%emt 0:00:05]} 0-1

[Event "EICC 2025"]
[Site "Eforie-Nord"]
[Date "2025.03.16"]
[Round "2.28"]
[White "Tari, Aryan"]
[Black "Nemec, Jachym"]
[Result "1-0"]
[Annotator "TA"]
[ECO "B32"]
[WhiteElo "2621"]
[BlackElo "2442"]
[PlyCount "49"]
[EventDate "2025.03.14"]
[EventType "swiss"]
[EventCountry "ROU"]
[SourceTitle "playchess.com"]
[Source "ChessBase"]
[SourceQuality "1"]
[TimeControl "40/5400+30:1800+30"]

{[%evp 15,49,24,34,9,33,15,25,0,0,0,0,6,8,20,112,95,115,101,112,95,112,91,113,110,259,259,245,260,257,250,262,268,262,258,260,237]} 1. e4 {[%emt 0:00:19]} c5 {[%emt 0:00:07]} 2. Nf3 {[%emt 0:00:07][%cal Bg1f3,Bf3d4,Bd4b5,Bb5a3,Ba3c2][%mdl 32]} Nc6 {[%emt 0:00:24]} 3. d4 {[%emt 0:00:24]} cxd4 {[%emt 0:00:09]} 4. Nxd4 {[%emt 0:00:04]} e5 {[%emt 0:00:43]} 5. Nb5 {[%emt 0:00:18]} d6 {[%emt 0:00:19]} 6. N1c3 {[%emt 0:01:55]} a6 {[%emt 0:00:08]} 7. Na3 {[%emt 0:00:05]} b5 {[%emt 0:01:15][%cal Bb7b5,Bb5b4][%mdl 32] 7...b5 was played by the boomers.} 8. Nd5 {[%emt 0:00:27]} Nf6 {[%emt 0:00:21]} 9. c4 {[%emt 0:00:20] B32: Sicilian: Löwenthal and Kalashnikov Variations.} b4 {[%emt 0:01:44]} 10. Nc2 {[%emt 0:01:54]} Nxe4 {[%emt 0:07:25]} 11. g3 {[%emt 0:01:10][%cal Of1g2] White has an edge.} (11. Qf3 {seems wilder.} Nc5 12. Bg5 e4 13. Bxd8 exf3 14. Bb6) 11... Rb8 {[%emt 0:04:58]} 12. Bg2 {[%emt 0:01:59]} Nc5 {[%emt 0:00:28]} 13. O-O {[%emt 0:05:03] White sacrificed a pawn} Be7 {[%emt 0:01:31]} 14. a3 {[%emt 0:06:39]} a5 $146 {[%emt 0:17:03]} (14... bxa3 $11 15. b4 (15. Rxa3 a5 $11) 15... Nb3 16. Rxa3 Nxc1) ({Predecessor:} 14... b3 15. Ncb4 Na5 16. Be3 O-O 17. f4 Bb7 18. Qe2 Kh8 19. fxe5 dxe5 20. Nxe7 Qxe7 {½-½ Tkachenko,I (2324)-Babychuk,V (2200) UKR-ch29 email 2017}) 15. axb4 $16 {[%emt 0:03:49]} axb4 {[%emt 0:00:33][%csl Ob4,Od6] Black has weak pawns. White has a strong knight and is better. A sharp opening} 16. Bd2 {[%emt 0:05:39][%cal Rc2b4]} Bb7 {[%emt 0:17:39]} 17. Bxb4 {[%emt 0:13:47] White is much more active.} Nxb4 {[%emt 0:05:23]} 18. Ncxb4 {[%emt 0:00:17]} O-O {[%emt 0:04:01]} 19. Ra7 {[%emt 0:01:11][%cal Ob4c6] Threatens to win with Nc6!.} Re8 {[%emt 0:05:22] [#] Black cannot hold the game after this.} (19... Bg5 $16) 20. Rxb7 $1 $18 {[%emt 0:02:29]} Rxb7 {[%emt 0:07:19]} 21. Nc6 $1 {[%emt 0:00:05][%csl LRd8,LRe7] Excellent horsemanship.} Qc8 {[%emt 0:03:36]} 22. Ndxe7+ {[%emt 0:00:08]} Rbxe7 {[%emt 0:00:06]} 23. Nxe7+ {[%emt 0:03:34] White has a decisive advantage.} (23. Qxd6 Re6 24. Qxc5 e4 $19) 23... Rxe7 {[%emt 0:00:05]} 24. Qxd6 {[%emt 0:00:46]} Qc7 {[%emt 0:09:08]} 25. Rd1 {[%emt 0:01:49] Weighted Error Value: White=0.03 (flawless) /Black=0.30  Mistake:       	---       	Black=2      OK:         	White=4     	Black=2      Best:        	White=5     	Black=2      Brilliant:      	White=1     	---} 1-0

[Event "EICC 2025"]
[Site "Eforie-Nord"]
[Date "2025.03.16"]
[Round "2.28"]
[White "Lashkin, Jegor"]
[Black "Kiolbasa, Oliwia"]
[Result "1/2-1/2"]
[Annotator "ChessBase"]
[ECO "C50"]
[WhiteElo "2517"]
[BlackElo "2360"]
[PlyCount "96"]
[EventDate "2025.03.14"]
[EventType "swiss"]
[EventCountry "ROU"]
[SourceTitle "playchess.com"]
[Source "ChessBase"]
[SourceQuality "1"]
[TimeControl "40/5400+30:1800+30"]

1. e4 {[%emt 0:02:00]} e5 {[%emt 0:00:17]} 2. Nf3 {[%emt 0:00:07]} Nc6 {[%emt 0:00:11]} 3. Bc4 {[%emt 0:00:08]} Bc5 {[%emt 0:03:11]} 4. d3 {[%emt 0:00:26]} Nf6 {[%emt 0:02:40]} 5. a4 {[%emt 0:00:16]} d6 {[%emt 0:04:03]} 6. Be3 {[%emt 0:02:03]} Bxe3 {[%emt 0:05:27]} 7. fxe3 {[%emt 0:00:09]} Be6 {[%emt 0:01:43]} 8. Bxe6 {[%emt 0:01:10]} fxe6 {[%emt 0:00:05]} 9. O-O {[%emt 0:01:04]} O-O {[%emt 0:00:38]} 10. Nbd2 {[%emt 0:01:03]} Qe8 {[%emt 0:22:42]} 11. c3 {[%emt 0:00:58]} Ng4 {[%emt 0:08:01]} 12. Qe1 {[%emt 0:08:33]} Qg6 {[%emt 0:00:51]} 13. h3 {[%emt 0:01:14]} Nf6 {[%emt 0:01:04]} 14. b4 {[%emt 0:00:49]} Rae8 {[%emt 0:01:58]} 15. Qh4 {[%emt 0:06:13]} Nd8 {[%emt 0:04:58]} 16. Rf2 {[%emt 0:16:47]} Nf7 {[%emt 0:02:46]} 17. g4 {[%emt 0:06:06]} h6 {[%emt 0:01:07]} 18. Nc4 {[%emt 0:13:26]} Nd7 {[%emt 0:02:55]} 19. Qg3 {[%emt 0:04:33]} d5 {[%emt 0:07:18]} 20. Ncd2 {[%emt 0:06:27]} Ng5 {[%emt 0:03:52]} 21. Raf1 {[%emt 0:03:30]} Nxf3+ {[%emt 0:03:26]} 22. Rxf3 {[%emt 0:00:12]} Rxf3 {[%emt 0:00:38]} 23. Rxf3 {[%emt 0:00:40]} Rf8 {[%emt 0:01:13]} 24. Rxf8+ {[%emt 0:00:57]} Kxf8 {[%emt 0:00:09]} 25. d4 {[%emt 0:06:57]} Qf6 {[%emt 0:05:06]} 26. Kg2 {[%emt 0:03:30]} Ke7 {[%emt 0:03:15]} 27. a5 {[%emt 0:02:48]} g5 {[%emt 0:03:14]} 28. Qf3 {[%emt 0:03:56]} Qxf3+ {[%emt 0:05:04]} 29. Kxf3 {[%emt 0:00:16]} b6 {[%emt 0:00:45]} 30. c4 {[%emt 0:03:05]} Kd6 {[%emt 0:01:40]} 31. axb6 {[%emt 0:02:14]} axb6 {[%emt 0:01:25]} 32. Ke2 {[%emt 0:02:10]} c6 {[%emt 0:02:45]} 33. Kd3 {[%emt 0:01:02]} b5 {[%emt 0:00:04]} 34. cxb5 {[%emt 0:01:46]} cxb5 {[%emt 0:00:06]} 35. exd5 {[%emt 0:00:23]} exd5 {[%emt 0:00:10]} 36. e4 {[%emt 0:00:22]} Ke6 {[%emt 0:02:04]} 37. Ke3 {[%emt 0:01:00]} dxe4 {[%emt 0:00:50]} 38. Nxe4 {[%emt 0:00:34]} Kd5 {[%emt 0:00:29]} 39. dxe5 {[%emt 0:00:27]} Nxe5 {[%emt 0:00:25]} 40. Nf6+ {[%emt 0:00:35]} Ke6 {[%emt 0:00:56]} 41. Ng8 {[%emt 0:04:58]} Nc6 {[%emt 0:03:43]} 42. Nxh6 {[%emt 0:00:34]} Nxb4 {[%emt 0:00:21]} 43. Nf5 {[%emt 0:03:40]} Ke5 {[%emt 0:05:57]} 44. h4 {[%emt 0:01:06]} Nd5+ {[%emt 0:00:36]} 45. Kd2 {[%emt 0:01:24]} gxh4 {[%emt 0:00:39]} 46. Nxh4 {[%emt 0:00:05]} Kf4 {[%emt 0:00:30]} 47. Nf5 {[%emt 0:00:20]} Kxg4 {[%emt 0:00:17]} 48. Ne3+ {[%emt 0:01:39]} Nxe3 {[%emt 0:00:05]} 1/2-1/2